[Event "Titled Tuesday Blitz August 02 Early 2022"]
[White "Abdrlauf, Elham"]
[Black "Devaev, Alexander"]
[WhiteFideId "1533533"]
[BlackFideId "4169395"]
[WhiteElo "2429"]
[BlackElo "2185"]
[Result "1-0"]
[Round "01"]
[TimeControl "180+1"]
[Date "2022.08.02"]
[WhiteClock "0:00:39"]
[BlackClock "0:00:11"]

1. e4 {[%clk 0:02:57]}  c6 {[%clk 0:02:59]} 2. d4 {[%clk 0:02:58]}  d5 {[%clk 0:02:59]} 3. Nc3 {[%clk 0:02:58]}  dxe4 {[%clk 0:02:59]} 4. Nxe4 {[%clk 0:02:59]}  Bf5 {[%clk 0:03:00]} 5. Ng3 {[%clk 0:02:59]}  Bg6 {[%clk 0:03:00]} 6. h4 {[%clk 0:03:00]}  h6 {[%clk 0:03:00]} 7. Nf3 {[%clk 0:03:01]}  Nd7 {[%clk 0:03:01]} 8. h5 {[%clk 0:03:01]}  Bh7 {[%clk 0:03:01]} 9. Bd3 {[%clk 0:03:02]}  Bxd3 {[%clk 0:03:00]} 10. Qxd3 {[%clk 0:03:03]}  Qc7 {[%clk 0:03:01]} 11. Bd2 {[%clk 0:03:02]}  e6 {[%clk 0:03:02]} 12. O-O-O {[%clk 0:03:03]}  Ngf6 {[%clk 0:03:02]} 13. Qe2 {[%clk 0:03:02]}  O-O-O {[%clk 0:03:01]} 14. Ne5 {[%clk 0:03:02]}  Nb6 {[%clk 0:02:57]} 15. Be3 {[%clk 0:02:44]}  Nbd5 {[%clk 0:02:48]} 16. Kb1 {[%clk 0:02:29]}  c5 {[%clk 0:02:37]} 17. Nf3 {[%clk 0:02:04]}  Bd6 {[%clk 0:02:31]} 18. dxc5 {[%clk 0:02:02]}  Bxg3 {[%clk 0:02:26]} 19. fxg3 {[%clk 0:02:03]}  Qxg3 {[%clk 0:02:18]} 20. c6 {[%clk 0:01:49]}  Nxe3 {[%clk 0:02:17]} 21. Qxe3 {[%clk 0:01:46]}  bxc6 {[%clk 0:01:59]} 22. Qxa7 {[%clk 0:01:40]}  Qc7 {[%clk 0:02:00]} 23. Qa8+ {[%clk 0:01:39]}  Qb8 {[%clk 0:01:58]} 24. Qxc6+ {[%clk 0:01:40]}  Qc7 {[%clk 0:01:59]} 25. Qa8+ {[%clk 0:01:36]}  Qb8 {[%clk 0:01:59]} 26. Qa4 {[%clk 0:01:16]}  Nxh5 {[%clk 0:01:41]} 27. Rd3 {[%clk 0:00:49]}  Rxd3 {[%clk 0:01:02]} 28. cxd3 {[%clk 0:00:50]}  Nf6 {[%clk 0:00:35]} 29. Rc1+ {[%clk 0:00:50]}  Kd8 {[%clk 0:00:36]} 30. Nd4 {[%clk 0:00:51]}  Qd6 {[%clk 0:00:15]} 31. Qa8+ {[%clk 0:00:40]}  Ke7 {[%clk 0:00:14]} 32. Nc6+ {[%clk 0:00:41]}  Kd7 {[%clk 0:00:14]} 33. Qb7+ {[%clk 0:00:39]}  Qc7 {[%clk 0:00:11]} 34. Nb8+ {[%clk 0:00:39]} 1-0


[Site "https://www.chess.com"]

[Event "Titled Tuesday Blitz August 02 Early 2022"]
[White "Alekseenko, Kirill"]
[Black "Fonseca Manrique, Enrique"]
[WhiteFideId "4135539"]
[BlackFideId "5114330"]
[WhiteElo "2682"]
[BlackElo "2464"]
[Result "1-0"]
[Round "01"]
[TimeControl "180+1"]
[Date "2022.08.02"]
[WhiteClock "0:00:47"]
[BlackClock "0:00:26"]

1. e4 {[%clk 0:02:58]}  c5 {[%clk 0:02:59]} 2. Nf3 {[%clk 0:02:58]}  e6 {[%clk 0:03:00]} 3. d4 {[%clk 0:02:59]}  cxd4 {[%clk 0:03:01]} 4. Nxd4 {[%clk 0:03:00]}  Nc6 {[%clk 0:03:01]} 5. Nc3 {[%clk 0:03:00]}  Qc7 {[%clk 0:03:02]} 6. Be2 {[%clk 0:03:00]}  Nf6 {[%clk 0:03:01]} 7. O-O {[%clk 0:03:00]}  Be7 {[%clk 0:03:02]} 8. a3 {[%clk 0:02:57]}  O-O {[%clk 0:03:01]} 9. Be3 {[%clk 0:02:57]}  d6 {[%clk 0:03:01]} 10. g4 {[%clk 0:02:56]}  a6 {[%clk 0:02:52]} 11. g5 {[%clk 0:02:54]}  Nd7 {[%clk 0:02:52]} 12. f4 {[%clk 0:02:54]}  Nxd4 {[%clk 0:02:40]} 13. Bxd4 {[%clk 0:02:50]}  e5 {[%clk 0:02:41]} 14. Nd5 {[%clk 0:02:45]}  Qd8 {[%clk 0:02:41]} 15. Bc3 {[%clk 0:02:40]}  exf4 {[%clk 0:02:32]} 16. h4 {[%clk 0:02:39]}  Ne5 {[%clk 0:02:30]} 17. Qd2 {[%clk 0:02:29]}  Be6 {[%clk 0:02:29]} 18. Rxf4 {[%clk 0:02:27]}  Rc8 {[%clk 0:02:07]} 19. Raf1 {[%clk 0:02:15]}  b5 {[%clk 0:01:25]} 20. Kh1 {[%clk 0:02:08]}  Bxd5 {[%clk 0:01:21]} 21. Qxd5 {[%clk 0:02:08]}  Qd7 {[%clk 0:01:12]} 22. Bg4 {[%clk 0:01:48]}  Nxg4 {[%clk 0:00:56]} 23. Rxf7 {[%clk 0:01:48]}  Nf6 {[%clk 0:00:39]} 24. R7xf6+ {[%clk 0:01:27]}  Kh8 {[%clk 0:00:39]} 25. Rxf8+ {[%clk 0:01:24]}  Rxf8 {[%clk 0:00:39]} 26. Rxf8+ {[%clk 0:01:23]}  Bxf8 {[%clk 0:00:39]} 27. Qf5 {[%clk 0:01:19]}  Qe8 {[%clk 0:00:37]} 28. Kg2 {[%clk 0:01:18]}  Kg8 {[%clk 0:00:37]} 29. Qd5+ {[%clk 0:01:17]}  Kh8 {[%clk 0:00:37]} 30. Bd4 {[%clk 0:01:17]}  Be7 {[%clk 0:00:37]} 31. Qe6 {[%clk 0:01:14]}  Qf8 {[%clk 0:00:37]} 32. b3 {[%clk 0:01:08]}  Bd8 {[%clk 0:00:35]} 33. Qf5 {[%clk 0:01:07]}  Qe7 {[%clk 0:00:34]} 34. c4 {[%clk 0:01:06]}  Kg8 {[%clk 0:00:34]} 35. cxb5 {[%clk 0:01:05]}  axb5 {[%clk 0:00:34]} 36. Qd5+ {[%clk 0:01:05]}  Kf8 {[%clk 0:00:34]} 37. a4 {[%clk 0:01:05]}  bxa4 {[%clk 0:00:34]} 38. bxa4 {[%clk 0:01:06]}  h6 {[%clk 0:00:30]} 39. Qf5+ {[%clk 0:01:05]}  Ke8 {[%clk 0:00:30]} 40. Qg6+ {[%clk 0:01:02]}  Kf8 {[%clk 0:00:30]} 41. gxh6 {[%clk 0:00:58]}  gxh6 {[%clk 0:00:30]} 42. Qxh6+ {[%clk 0:00:58]}  Ke8 {[%clk 0:00:31]} 43. Qg6+ {[%clk 0:00:57]}  Kd7 {[%clk 0:00:31]} 44. h5 {[%clk 0:00:52]}  Qh4 {[%clk 0:00:30]} 45. Qf5+ {[%clk 0:00:52]}  Ke8 {[%clk 0:00:28]} 46. Bf2 {[%clk 0:00:47]}  Qe7 {[%clk 0:00:26]} 47. h6 {[%clk 0:00:47]} 1-0


[Site "https://www.chess.com"]

[Event "Titled Tuesday Blitz August 02 Early 2022"]
[White "Bethke, Richard"]
[Black "Ohanyan, Emin"]
[WhiteFideId "12959243"]
[BlackFideId "13312022"]
[WhiteElo "2478"]
[BlackElo "1927"]
[Result "0-1"]
[Round "01"]
[TimeControl "180+1"]
[Date "2022.08.02"]
[WhiteClock "0:00:21"]
[BlackClock "0:01:10"]

1. e4 {[%clk 0:02:18]}  e5 {[%clk 0:02:59]} 2. Nf3 {[%clk 0:02:15]}  Nc6 {[%clk 0:02:59]} 3. Bc4 {[%clk 0:02:08]}  Nf6 {[%clk 0:02:59]} 4. d3 {[%clk 0:02:08]}  d5 {[%clk 0:02:59]} 5. exd5 {[%clk 0:02:07]}  Nxd5 {[%clk 0:03:00]} 6. O-O {[%clk 0:02:05]}  Bc5 {[%clk 0:03:00]} 7. Nxe5 {[%clk 0:01:57]}  Nxe5 {[%clk 0:02:48]} 8. Re1 {[%clk 0:01:56]}  Be6 {[%clk 0:02:21]} 9. Rxe5 {[%clk 0:01:37]}  Bxf2+ {[%clk 0:02:17]} 10. Kf1 {[%clk 0:01:37]}  Bd4 {[%clk 0:02:13]} 11. Re4 {[%clk 0:01:37]}  Qf6+ {[%clk 0:02:07]} 12. Qf3 {[%clk 0:01:36]}  Bxb2 {[%clk 0:02:02]} 13. Bxb2 {[%clk 0:01:23]}  Qxb2 {[%clk 0:02:03]} 14. Bxd5 {[%clk 0:01:24]}  Qxa1 {[%clk 0:02:03]} 15. Bxe6 {[%clk 0:01:23]}  O-O {[%clk 0:01:39]} 16. Bb3 {[%clk 0:01:12]}  Qxb1+ {[%clk 0:01:39]} 17. Re1 {[%clk 0:01:13]}  Qb2 {[%clk 0:01:40]} 18. Qxb7 {[%clk 0:01:14]}  Qf6+ {[%clk 0:01:36]} 19. Kg1 {[%clk 0:01:09]}  Rae8 {[%clk 0:01:35]} 20. Rf1 {[%clk 0:01:03]}  Qd4+ {[%clk 0:01:06]} 21. Kh1 {[%clk 0:01:03]}  Qf2 {[%clk 0:01:07]} 22. Qf3 {[%clk 0:00:33]}  Qxf3 {[%clk 0:01:07]} 23. gxf3 {[%clk 0:00:33]}  Re2 {[%clk 0:01:08]} 24. f4 {[%clk 0:00:31]}  Rfe8 {[%clk 0:01:08]} 25. f5 {[%clk 0:00:31]}  Kf8 {[%clk 0:01:08]} 26. Rf4 {[%clk 0:00:26]}  Rd2 {[%clk 0:01:08]} 27. Re4 {[%clk 0:00:20]}  Rxe4 {[%clk 0:01:07]} 28. dxe4 {[%clk 0:00:21]}  f6 {[%clk 0:01:07]} 29. Kg1 {[%clk 0:00:21]}  Ke7 {[%clk 0:01:08]} 30. c3 {[%clk 0:00:20]}  Kd6 {[%clk 0:01:08]} 31. Bd5 {[%clk 0:00:21]}  Ke5 {[%clk 0:01:09]} 32. a4 {[%clk 0:00:20]}  Kf4 {[%clk 0:01:09]} 33. Kf1 {[%clk 0:00:20]}  Rxh2 {[%clk 0:01:09]} 34. c4 {[%clk 0:00:20]}  Rd2 {[%clk 0:01:10]} 35. Ke1 {[%clk 0:00:21]}  Rd4 {[%clk 0:01:10]} 0-1


[Site "https://www.chess.com"]

[Event "Titled Tuesday Blitz August 02 Early 2022"]
[White "Boros, Denes"]
[Black "Myshakov, Fyodor"]
[WhiteFideId "722340"]
[BlackFideId "14111284"]
[WhiteElo "2464"]
[BlackElo "2310"]
[Result "1-0"]
[Round "01"]
[TimeControl "180+1"]
[Date "2022.08.02"]
[WhiteClock "0:00:24"]
[BlackClock "0:00:00"]

1. e4 {[%clk 0:03:00]}  c6 {[%clk 0:02:54]} 2. Nc3 {[%clk 0:03:01]}  d5 {[%clk 0:02:55]} 3. exd5 {[%clk 0:03:02]}  cxd5 {[%clk 0:02:55]} 4. d4 {[%clk 0:03:03]}  Nf6 {[%clk 0:02:51]} 5. Bf4 {[%clk 0:03:03]}  a6 {[%clk 0:02:44]} 6. Nf3 {[%clk 0:03:03]}  Nc6 {[%clk 0:02:42]} 7. Ne5 {[%clk 0:03:04]}  g6 {[%clk 0:02:41]} 8. Qd2 {[%clk 0:03:03]}  Bg7 {[%clk 0:02:39]} 9. Be2 {[%clk 0:03:00]}  O-O {[%clk 0:02:36]} 10. O-O {[%clk 0:02:51]}  Bf5 {[%clk 0:02:30]} 11. Nxc6 {[%clk 0:02:48]}  bxc6 {[%clk 0:02:28]} 12. Bf3 {[%clk 0:02:41]}  Ne4 {[%clk 0:02:26]} 13. Bxe4 {[%clk 0:02:40]}  Bxe4 {[%clk 0:02:27]} 14. Nxe4 {[%clk 0:02:37]}  dxe4 {[%clk 0:02:25]} 15. Rad1 {[%clk 0:02:38]}  Qd5 {[%clk 0:02:18]} 16. b3 {[%clk 0:02:34]}  Rfd8 {[%clk 0:02:12]} 17. Qe2 {[%clk 0:02:34]}  Qf5 {[%clk 0:02:05]} 18. Be3 {[%clk 0:02:30]}  a5 {[%clk 0:01:46]} 19. Rfe1 {[%clk 0:02:19]}  a4 {[%clk 0:01:44]} 20. Qc4 {[%clk 0:02:19]}  Qb5 {[%clk 0:01:37]} 21. c3 {[%clk 0:02:12]}  Qxc4 {[%clk 0:01:31]} 22. bxc4 {[%clk 0:02:11]}  f5 {[%clk 0:01:27]} 23. Rb1 {[%clk 0:02:05]}  Rab8 {[%clk 0:01:19]} 24. Bf4 {[%clk 0:02:04]}  Rxb1 {[%clk 0:01:17]} 25. Rxb1 {[%clk 0:02:05]}  c5 {[%clk 0:01:13]} 26. dxc5 {[%clk 0:02:03]}  e5 {[%clk 0:01:09]} 27. Bg5 {[%clk 0:01:50]}  Rc8 {[%clk 0:01:07]} 28. Be7 {[%clk 0:01:47]}  Bf8 {[%clk 0:01:07]} 29. Bd6 {[%clk 0:01:32]}  Kf7 {[%clk 0:00:56]} 30. Rb7+ {[%clk 0:01:30]}  Ke8 {[%clk 0:00:56]} 31. Bxe5 {[%clk 0:01:02]}  h6 {[%clk 0:00:37]} 32. Rb6 {[%clk 0:00:50]}  Rxc5 {[%clk 0:00:23]} 33. Bd4 {[%clk 0:00:48]}  Rxc4 {[%clk 0:00:22]} 34. Rxg6 {[%clk 0:00:48]}  Kd7 {[%clk 0:00:20]} 35. h4 {[%clk 0:00:36]}  Bc5 {[%clk 0:00:18]} 36. Rxh6 {[%clk 0:00:34]}  Bxd4 {[%clk 0:00:17]} 37. cxd4 {[%clk 0:00:35]}  Rxd4 {[%clk 0:00:18]} 38. Ra6 {[%clk 0:00:34]}  Rd1+ {[%clk 0:00:17]} 39. Kh2 {[%clk 0:00:34]}  Rd2 {[%clk 0:00:17]} 40. Kg3 {[%clk 0:00:33]}  Rxa2 {[%clk 0:00:15]} 41. h5 {[%clk 0:00:33]}  Ke7 {[%clk 0:00:08]} 42. Ra7+ {[%clk 0:00:24]}  Kf6 {[%clk 0:00:07]} 43. h6 {[%clk 0:00:25]}  Ra1 {[%clk 0:00:00]} 44. Kh2 {[%clk 0:00:24]} 1-0


[Site "https://www.chess.com"]

[Event "Titled Tuesday Blitz August 02 Early 2022"]
[White "Bortnyk, Olexandr"]
[Black "Gaisinsky, Adam"]
[WhiteFideId "14120828"]
[BlackFideId "2620561"]
[WhiteElo "2723"]
[BlackElo "1965"]
[Result "1-0"]
[Round "01"]
[TimeControl "180+1"]
[Date "2022.08.02"]
[WhiteClock "0:00:47"]
[BlackClock "0:00:03"]

1. d4 {[%clk 0:02:55]}  Nf6 {[%clk 0:03:00]} 2. Nc3 {[%clk 0:02:55]}  d5 {[%clk 0:02:59]} 3. Bf4 {[%clk 0:02:55]}  e6 {[%clk 0:02:54]} 4. Nb5 {[%clk 0:02:52]}  Na6 {[%clk 0:02:54]} 5. e3 {[%clk 0:02:52]}  Be7 {[%clk 0:02:53]} 6. Nf3 {[%clk 0:02:51]}  O-O {[%clk 0:02:53]} 7. Ne5 {[%clk 0:02:50]}  c6 {[%clk 0:01:57]} 8. Nc3 {[%clk 0:02:46]}  c5 {[%clk 0:01:58]} 9. Bxa6 {[%clk 0:02:44]}  bxa6 {[%clk 0:01:56]} 10. Nc6 {[%clk 0:02:42]}  Qe8 {[%clk 0:01:48]} 11. Nxe7+ {[%clk 0:02:42]}  Qxe7 {[%clk 0:01:49]} 12. O-O {[%clk 0:02:41]}  a5 {[%clk 0:01:34]} 13. Qf3 {[%clk 0:02:34]}  Bb7 {[%clk 0:01:31]} 14. Bg5 {[%clk 0:02:26]}  cxd4 {[%clk 0:01:26]} 15. exd4 {[%clk 0:02:21]}  h6 {[%clk 0:01:19]} 16. Bxf6 {[%clk 0:02:12]}  Qxf6 {[%clk 0:01:19]} 17. Qxf6 {[%clk 0:01:49]}  gxf6 {[%clk 0:01:20]} 18. Na4 {[%clk 0:01:49]}  Ba6 {[%clk 0:01:13]} 19. Rfe1 {[%clk 0:01:47]}  Rab8 {[%clk 0:01:12]} 20. Nc5 {[%clk 0:01:41]}  Bb5 {[%clk 0:01:09]} 21. a4 {[%clk 0:01:27]}  Bc6 {[%clk 0:01:03]} 22. b3 {[%clk 0:01:26]}  Kh7 {[%clk 0:00:54]} 23. Re3 {[%clk 0:01:17]}  Rb4 {[%clk 0:00:49]} 24. c3 {[%clk 0:01:16]}  Rbb8 {[%clk 0:00:46]} 25. f4 {[%clk 0:01:15]}  f5 {[%clk 0:00:44]} 26. Kf2 {[%clk 0:01:13]}  Rg8 {[%clk 0:00:42]} 27. Rae1 {[%clk 0:01:06]}  Rg4 {[%clk 0:00:42]} 28. g3 {[%clk 0:01:00]}  h5 {[%clk 0:00:39]} 29. Nd3 {[%clk 0:01:00]}  Rg7 {[%clk 0:00:27]} 30. Nc5 {[%clk 0:01:00]}  Rbg8 {[%clk 0:00:23]} 31. h4 {[%clk 0:00:58]}  Rb8 {[%clk 0:00:18]} 32. Rb1 {[%clk 0:00:59]}  Rgg8 {[%clk 0:00:16]} 33. b4 {[%clk 0:01:00]}  Rb6 {[%clk 0:00:10]} 34. b5 {[%clk 0:00:55]}  Be8 {[%clk 0:00:10]} 35. Re2 {[%clk 0:00:46]}  Kg7 {[%clk 0:00:03]} 36. Reb2 {[%clk 0:00:45]}  Kf6 {[%clk 0:00:03]} 37. Nb3 {[%clk 0:00:45]}  a6 {[%clk 0:00:04]} 38. Nxa5 {[%clk 0:00:45]}  axb5 {[%clk 0:00:03]} 39. axb5 {[%clk 0:00:46]}  Bd7 {[%clk 0:00:03]} 40. c4 {[%clk 0:00:45]}  dxc4 {[%clk 0:00:03]} 41. Nxc4 {[%clk 0:00:46]}  Rb7 {[%clk 0:00:02]} 42. b6 {[%clk 0:00:47]}  Bc6 {[%clk 0:00:03]} 43. Na5 {[%clk 0:00:47]} 1-0


[Site "https://www.chess.com"]

[Event "Titled Tuesday Blitz August 02 Early 2022"]
[White "Chen, Justin"]
[Black "Andreikin, Dmitry"]
[WhiteFideId "2098199"]
[BlackFideId "4158814"]
[WhiteElo "2289"]
[BlackElo "2736"]
[Result "0-1"]
[Round "01"]
[TimeControl "180+1"]
[Date "2022.08.02"]
[WhiteClock "0:00:03"]
[BlackClock "0:02:09"]

1. e4 {[%clk 0:02:59]}  c5 {[%clk 0:02:59]} 2. Nc3 {[%clk 0:02:59]}  e6 {[%clk 0:02:59]} 3. Nge2 {[%clk 0:02:59]}  a6 {[%clk 0:02:57]} 4. g3 {[%clk 0:02:58]}  b5 {[%clk 0:02:57]} 5. Bg2 {[%clk 0:02:57]}  Bb7 {[%clk 0:02:58]} 6. O-O {[%clk 0:02:56]}  b4 {[%clk 0:02:57]} 7. Nb1 {[%clk 0:02:53]}  Nf6 {[%clk 0:02:55]} 8. d3 {[%clk 0:02:52]}  d5 {[%clk 0:02:55]} 9. Nd2 {[%clk 0:02:49]}  Nc6 {[%clk 0:02:55]} 10. a3 {[%clk 0:02:39]}  a5 {[%clk 0:02:54]} 11. exd5 {[%clk 0:02:35]}  exd5 {[%clk 0:02:50]} 12. Nf4 {[%clk 0:02:26]}  Be7 {[%clk 0:02:49]} 13. axb4 {[%clk 0:02:26]}  axb4 {[%clk 0:02:44]} 14. Rxa8 {[%clk 0:02:26]}  Bxa8 {[%clk 0:02:45]} 15. Nf3 {[%clk 0:02:07]}  O-O {[%clk 0:02:45]} 16. Re1 {[%clk 0:02:08]}  Re8 {[%clk 0:02:45]} 17. Ne5 {[%clk 0:02:08]}  Nxe5 {[%clk 0:02:43]} 18. Rxe5 {[%clk 0:02:09]}  Bd6 {[%clk 0:02:44]} 19. Rxe8+ {[%clk 0:02:08]}  Qxe8 {[%clk 0:02:45]} 20. c4 {[%clk 0:01:47]}  bxc3 {[%clk 0:02:37]} 21. bxc3 {[%clk 0:01:46]}  h6 {[%clk 0:02:38]} 22. c4 {[%clk 0:01:29]}  d4 {[%clk 0:02:38]} 23. Bd2 {[%clk 0:01:29]}  Bxg2 {[%clk 0:02:34]} 24. Kxg2 {[%clk 0:01:30]}  g5 {[%clk 0:02:33]} 25. Nd5 {[%clk 0:01:16]}  Nxd5 {[%clk 0:02:31]} 26. cxd5 {[%clk 0:01:17]}  Qe5 {[%clk 0:02:31]} 27. Qf3 {[%clk 0:01:13]}  f5 {[%clk 0:02:29]} 28. h3 {[%clk 0:01:11]}  Kg7 {[%clk 0:02:27]} 29. Ba5 {[%clk 0:01:01]}  Kg6 {[%clk 0:02:26]} 30. Kf1 {[%clk 0:01:00]}  h5 {[%clk 0:02:25]} 31. Bd8 {[%clk 0:00:40]}  g4 {[%clk 0:02:23]} 32. hxg4 {[%clk 0:00:41]}  fxg4 {[%clk 0:02:22]} 33. Qh1 {[%clk 0:00:30]}  Qf5 {[%clk 0:02:21]} 34. Ke2 {[%clk 0:00:28]}  c4 {[%clk 0:02:19]} 35. dxc4 {[%clk 0:00:19]}  Qc2+ {[%clk 0:02:17]} 36. Kf1 {[%clk 0:00:19]}  Qxc4+ {[%clk 0:02:16]} 37. Kg1 {[%clk 0:00:17]}  Qc1+ {[%clk 0:02:15]} 38. Kh2 {[%clk 0:00:18]}  Qxh1+ {[%clk 0:02:15]} 39. Kxh1 {[%clk 0:00:18]}  Kf5 {[%clk 0:02:13]} 40. Kg2 {[%clk 0:00:13]}  Ke4 {[%clk 0:02:13]} 41. Ba5 {[%clk 0:00:07]}  d3 {[%clk 0:02:12]} 42. Bd2 {[%clk 0:00:05]}  Kxd5 {[%clk 0:02:12]} 43. f3 {[%clk 0:00:03]}  Bc5 {[%clk 0:02:10]} 44. f4 {[%clk 0:00:02]}  Ke4 {[%clk 0:02:11]} 45. Bc3 {[%clk 0:00:02]}  Be3 {[%clk 0:02:10]} 46. Kf1 {[%clk 0:00:02]}  Kf3 {[%clk 0:02:08]} 47. f5 {[%clk 0:00:01]}  d2 {[%clk 0:02:08]} 48. Bxd2 {[%clk 0:00:02]}  Bxd2 {[%clk 0:02:09]} 49. f6 {[%clk 0:00:03]}  Kxg3 {[%clk 0:02:09]} 0-1


[Site "https://www.chess.com"]

[Event "Titled Tuesday Blitz August 02 Early 2022"]
[White "Demchenko, Anton"]
[Black "Manukyan, Sargis A."]
[WhiteFideId "4160258"]
[BlackFideId "13303970"]
[WhiteElo "2539"]
[BlackElo "2187"]
[Result "1-0"]
[Round "01"]
[TimeControl "180+1"]
[Date "2022.08.02"]
[WhiteClock "0:00:57"]
[BlackClock "0:00:03"]

1. e4 {[%clk 0:03:00]}  c5 {[%clk 0:02:58]} 2. Nf3 {[%clk 0:03:01]}  d6 {[%clk 0:02:54]} 3. d4 {[%clk 0:03:00]}  cxd4 {[%clk 0:02:55]} 4. Nxd4 {[%clk 0:03:01]}  Nf6 {[%clk 0:02:55]} 5. Nc3 {[%clk 0:03:01]}  g6 {[%clk 0:02:56]} 6. Be3 {[%clk 0:02:57]}  Bg7 {[%clk 0:02:53]} 7. f3 {[%clk 0:02:56]}  O-O {[%clk 0:02:54]} 8. Qd2 {[%clk 0:02:56]}  Nc6 {[%clk 0:02:55]} 9. Bc4 {[%clk 0:02:55]}  Bd7 {[%clk 0:02:53]} 10. O-O-O {[%clk 0:02:53]}  Rc8 {[%clk 0:02:53]} 11. Be2 {[%clk 0:02:53]}  a6 {[%clk 0:02:27]} 12. Kb1 {[%clk 0:02:53]}  Nxd4 {[%clk 0:02:28]} 13. Bxd4 {[%clk 0:02:53]}  b5 {[%clk 0:02:28]} 14. g4 {[%clk 0:02:49]}  b4 {[%clk 0:02:27]} 15. Nd5 {[%clk 0:02:48]}  Nxd5 {[%clk 0:02:27]} 16. exd5 {[%clk 0:02:45]}  Bxd4 {[%clk 0:02:26]} 17. Qxd4 {[%clk 0:02:46]}  a5 {[%clk 0:02:16]} 18. h4 {[%clk 0:02:44]}  Qc7 {[%clk 0:02:10]} 19. Bd3 {[%clk 0:02:39]}  Qc5 {[%clk 0:01:23]} 20. Qf4 {[%clk 0:02:34]}  Bb5 {[%clk 0:00:56]} 21. Be4 {[%clk 0:01:59]}  e5 {[%clk 0:00:22]} 22. dxe6 {[%clk 0:01:54]}  fxe6 {[%clk 0:00:20]} 23. Qxd6 {[%clk 0:01:54]}  Qc4 {[%clk 0:00:11]} 24. Rd4 {[%clk 0:01:42]}  Qc5 {[%clk 0:00:06]} 25. Qxe6+ {[%clk 0:01:35]}  Kh8 {[%clk 0:00:05]} 26. Rd5 {[%clk 0:01:32]}  Qc7 {[%clk 0:00:03]} 27. Rxb5 {[%clk 0:01:10]}  Rxf3 {[%clk 0:00:03]} 28. Rb7 {[%clk 0:00:57]} 1-0


[Site "https://www.chess.com"]

[Event "Titled Tuesday Blitz August 02 Early 2022"]
[White "Dushyant Sharma"]
[Black "Sarana, Alexey"]
[WhiteFideId "25065130"]
[BlackFideId "24133795"]
[WhiteElo "2105"]
[BlackElo "2666"]
[Result "0-1"]
[Round "01"]
[TimeControl "180+1"]
[Date "2022.08.02"]
[WhiteClock "0:00:06"]
[BlackClock "0:00:49"]

1. e4 {[%clk 0:01:49]}  c5 {[%clk 0:02:58]} 2. Nf3 {[%clk 0:01:49]}  d6 {[%clk 0:02:59]} 3. d4 {[%clk 0:01:50]}  cxd4 {[%clk 0:03:00]} 4. Nxd4 {[%clk 0:01:51]}  Nf6 {[%clk 0:03:01]} 5. Nc3 {[%clk 0:01:51]}  a6 {[%clk 0:03:01]} 6. f4 {[%clk 0:01:51]}  e5 {[%clk 0:03:00]} 7. Nf3 {[%clk 0:01:51]}  Qc7 {[%clk 0:03:01]} 8. Bd3 {[%clk 0:01:52]}  Nbd7 {[%clk 0:03:00]} 9. a4 {[%clk 0:01:52]}  Nc5 {[%clk 0:03:00]} 10. O-O {[%clk 0:01:52]}  Be7 {[%clk 0:03:00]} 11. Kh1 {[%clk 0:01:52]}  O-O {[%clk 0:03:00]} 12. Qe1 {[%clk 0:01:52]}  Re8 {[%clk 0:02:57]} 13. Bd2 {[%clk 0:01:43]}  Be6 {[%clk 0:02:50]} 14. b4 {[%clk 0:01:32]}  Nxd3 {[%clk 0:02:47]} 15. cxd3 {[%clk 0:01:33]}  exf4 {[%clk 0:02:44]} 16. Bxf4 {[%clk 0:01:19]}  Rac8 {[%clk 0:02:44]} 17. Bd2 {[%clk 0:01:14]}  d5 {[%clk 0:02:24]} 18. e5 {[%clk 0:00:58]}  Bxb4 {[%clk 0:02:21]} 19. exf6 {[%clk 0:00:53]}  Bxc3 {[%clk 0:02:21]} 20. Rc1 {[%clk 0:00:47]}  Bxd2 {[%clk 0:02:01]} 21. Qxd2 {[%clk 0:00:48]}  Qd8 {[%clk 0:02:00]} 22. Rxc8 {[%clk 0:00:34]}  Bxc8 {[%clk 0:02:00]} 23. Nd4 {[%clk 0:00:22]}  gxf6 {[%clk 0:01:51]} 24. h3 {[%clk 0:00:20]}  Qd6 {[%clk 0:01:42]} 25. Nf5 {[%clk 0:00:17]}  Bxf5 {[%clk 0:01:39]} 26. Rxf5 {[%clk 0:00:18]}  Re5 {[%clk 0:01:39]} 27. Rf1 {[%clk 0:00:17]}  d4 {[%clk 0:01:37]} 28. Qf4 {[%clk 0:00:17]}  Kg7 {[%clk 0:01:34]} 29. Qg3+ {[%clk 0:00:16]}  Kf8 {[%clk 0:01:32]} 30. Qf4 {[%clk 0:00:16]}  b5 {[%clk 0:01:27]} 31. axb5 {[%clk 0:00:16]}  axb5 {[%clk 0:01:28]} 32. Qh6+ {[%clk 0:00:14]}  Ke7 {[%clk 0:01:28]} 33. Ra1 {[%clk 0:00:14]}  Qb8 {[%clk 0:01:19]} 34. Qf4 {[%clk 0:00:12]}  Qb6 {[%clk 0:01:15]} 35. Qg4 {[%clk 0:00:06]}  b4 {[%clk 0:01:13]} 36. Qc8 {[%clk 0:00:07]}  b3 {[%clk 0:01:09]} 37. Ra6 {[%clk 0:00:07]}  Qc5 {[%clk 0:00:50]} 38. Ra7+ {[%clk 0:00:06]}  Qxa7 {[%clk 0:00:49]} 0-1


[Site "https://www.chess.com"]

[Event "Titled Tuesday Blitz August 02 Early 2022"]
[White "Girinath, P.D.S."]
[Black "Seo, Jung Min"]
[WhiteFideId "5000572"]
[BlackFideId "1734687"]
[WhiteElo "2369"]
[BlackElo "2414"]
[Result "0-1"]
[Round "01"]
[TimeControl "180+1"]
[Date "2022.08.02"]
[WhiteClock "0:00:04"]
[BlackClock "0:01:34"]

1. e4 {[%clk 0:03:00]}  c5 {[%clk 0:02:59]} 2. Nf3 {[%clk 0:03:00]}  d6 {[%clk 0:03:00]} 3. Bb5+ {[%clk 0:02:59]}  Nd7 {[%clk 0:02:59]} 4. d4 {[%clk 0:02:56]}  cxd4 {[%clk 0:02:59]} 5. Qxd4 {[%clk 0:02:55]}  a6 {[%clk 0:02:56]} 6. Bxd7+ {[%clk 0:02:55]}  Bxd7 {[%clk 0:02:57]} 7. c4 {[%clk 0:02:55]}  Bc6 {[%clk 0:02:54]} 8. Nc3 {[%clk 0:02:54]}  e6 {[%clk 0:02:45]} 9. O-O {[%clk 0:02:40]}  Nf6 {[%clk 0:02:43]} 10. Bg5 {[%clk 0:02:26]}  Be7 {[%clk 0:02:42]} 11. Rad1 {[%clk 0:02:18]}  O-O {[%clk 0:02:42]} 12. Rfe1 {[%clk 0:02:16]}  Qa5 {[%clk 0:02:37]} 13. a3 {[%clk 0:01:55]}  Rfd8 {[%clk 0:02:32]} 14. Nd5 {[%clk 0:01:10]}  Bxd5 {[%clk 0:02:13]} 15. exd5 {[%clk 0:01:05]}  e5 {[%clk 0:02:12]} 16. Qh4 {[%clk 0:00:40]}  Rac8 {[%clk 0:02:09]} 17. Re3 {[%clk 0:00:25]}  Qa4 {[%clk 0:02:05]} 18. b3 {[%clk 0:00:22]}  Qxa3 {[%clk 0:02:03]} 19. Rde1 {[%clk 0:00:17]}  b5 {[%clk 0:02:01]} 20. Nxe5 {[%clk 0:00:08]}  dxe5 {[%clk 0:02:01]} 21. Rxe5 {[%clk 0:00:09]}  Bd6 {[%clk 0:01:33]} 22. Bxf6 {[%clk 0:00:04]}  gxf6 {[%clk 0:01:34]} 0-1


[Site "https://www.chess.com"]